[Event "NJSK 2024 A"]
[Site "Groningen, Netherlands"]
[Date "2024.04.30"]
[Round "4.5"]
[White "Khatniuk, Anastasiia"]
[Black "Van Hesselingen, Guido"]
[Result "0-1"]
[TimeControl "90min/40moves + 30min + 30sec/move"]
[WhiteElo "2012"]
[BlackElo "2016"]

1. e4 {[%clk 01:30:58]} {[%emt 00:00:02]} e5 {[%clk 01:30:53]} {[%emt
00:00:07]} 2. Nf3 {[%clk 01:31:23]} {[%emt 00:00:04]} Nc6 {[%clk 01:31:20]}
{[%emt 00:00:04]} 3. Bb5 {[%clk 01:31:48]} {[%emt 00:00:06]} a6 {[%clk
01:31:45]} {[%emt 00:00:05]} 4. Ba4 {[%clk 01:32:14]} {[%emt 00:00:04]} Nf6
{[%clk 01:32:10]} {[%emt 00:00:04]} 5. O-O {[%clk 01:32:36]} {[%emt 00:00:08]}
Be7 {[%clk 01:32:34]} {[%emt 00:00:05]} 6. Re1 {[%clk 01:33:00]} {[%emt
00:00:06]} b5 {[%clk 01:32:57]} {[%emt 00:00:08]} 7. Bb3 {[%clk 01:33:26]}
{[%emt 00:00:05]} d6 {[%clk 01:33:22]} {[%emt 00:00:04]} 8. a4 {[%clk
01:33:50]} {[%emt 00:00:06]} Bg4 {[%clk 01:33:31]} {[%emt 00:00:21]} 9. c3
{[%clk 01:32:52]} {[%emt 00:01:28]} O-O {[%clk 01:33:37]} {[%emt 00:00:24]} 10.
h3 {[%clk 01:32:58]} {[%emt 00:00:25]} Bxf3 {[%clk 01:33:53]} {[%emt 00:00:14]}
11. Qxf3 {[%clk 01:33:20]} {[%emt 00:00:07]} Na5 {[%clk 01:34:08]} {[%emt
00:00:15]} 12. Bc2 {[%clk 01:33:39]} {[%emt 00:00:12]} b4 {[%clk 01:34:14]}
{[%emt 00:00:24]} 13. d3 {[%clk 01:28:59]} {[%emt 00:05:10]} c5 {[%clk
01:32:22]} {[%emt 00:02:21]} 14. Nd2 {[%clk 01:27:40]} {[%emt 00:01:48]} Rb8
{[%clk 01:29:58]} {[%emt 00:02:55]} 15. Nf1 {[%clk 01:24:12]} {[%emt 00:03:58]}
Ne8 {[%clk 01:14:36]} {[%emt 00:15:53]} 16. Ng3 {[%clk 01:16:00]} {[%emt
00:08:41]} Bg5 {[%clk 01:09:58]} {[%emt 00:05:08]} 17. Bxg5 {[%clk 01:10:24]}
{[%emt 00:06:06]} Qxg5 {[%clk 01:10:19]} 18. Rad1 {[%clk 01:10:28]} {[%emt
00:00:35]} Nc6 {[%clk 01:04:03]} {[%emt 00:06:46]} 19. Ne2 {[%clk 01:03:41]}
{[%emt 00:07:16]} bxc3 {[%clk 00:52:13]} {[%emt 00:12:21]} 20. bxc3 {[%clk
01:04:01]} {[%emt 00:00:10]} Nc7 {[%clk 00:52:29]} {[%emt 00:00:14]} 21. d4
{[%clk 01:02:08]} {[%emt 00:02:23]} cxd4 {[%clk 00:51:46]} {[%emt 00:01:13]} 22.
cxd4 {[%clk 01:02:26]} {[%emt 00:00:12]} Ne6 {[%clk 00:51:05]} {[%emt
00:01:11]} 23. d5 {[%clk 00:58:01]} {[%emt 00:04:54]} Ncd4 {[%clk 00:50:21]}
{[%emt 00:01:14]} 24. Nxd4 {[%clk 00:53:58]} {[%emt 00:04:33]} Nxd4 {[%clk
00:50:44]} {[%emt 00:00:08]} 25. Qd3 {[%clk 00:46:04]} {[%emt 00:08:24]} Rb2
{[%clk 00:40:53]} {[%emt 00:10:21]} 26. Rc1 {[%clk 00:34:55]} {[%emt 00:11:39]}
g6 {[%clk 00:28:33]} {[%emt 00:12:50]} 27. Qd1 {[%clk 00:19:37]} {[%emt
00:15:48]} Rfb8 {[%clk 00:14:50]} {[%emt 00:14:13]} 28. Re3 {[%clk 00:13:04]}
{[%emt 00:07:02]} Kg7 {[%clk 00:13:10]} {[%emt 00:02:11]} 29. Bd3 {[%clk
00:10:23]} {[%emt 00:03:10]} R8b3 {[%clk 00:10:10]} {[%emt 00:03:30]} 30. Rc7
{[%clk 00:07:29]} {[%emt 00:03:24]} Ra3 {[%clk 00:09:17]} {[%emt 00:01:23]} 31.
Qc1 {[%clk 00:04:48]} {[%emt 00:03:11]} Raa2 {[%clk 00:07:39]} {[%emt
00:02:09]} 32. Bf1 {[%clk 00:03:52]} {[%emt 00:01:26]} Rxf2 {[%clk 00:07:05]}
{[%emt 00:01:04]} 33. Rcc3 {[%clk 00:03:12]} {[%emt 00:01:09]} Rxg2+ {[%clk
00:07:07]} {[%emt 00:00:28]} 0-1

[Event "NJSK 2024 A"]
[Site "Groningen, Netherlands"]
[Date "2024.04.30"]
[Round "4.6"]
[White "Klugstedt, Vincent"]
[Black "Wiersma, Camiel"]
[Result "1/2-1/2"]
[TimeControl "90min/40moves + 30min + 30sec/move"]
[WhiteElo "1913"]
[BlackElo "1963"]

1. d4 {[%clk 01:30:56]} {[%emt 00:00:04]} Nf6 {[%clk 01:30:54]} {[%emt
00:00:07]} 2. c4 {[%clk 01:31:14]} {[%emt 00:00:12]} g6 {[%clk 01:31:18]}
{[%emt 00:00:06]} 3. f3 {[%clk 01:29:59]} {[%emt 00:01:44]} Bg7 {[%clk
01:31:34]} {[%emt 00:00:14]} 4. e4 {[%clk 01:30:01]} {[%emt 00:00:29]} d6
{[%clk 01:31:58]} {[%emt 00:00:06]} 5. Nc3 {[%clk 01:30:18]} {[%emt 00:00:12]}
O-O {[%clk 01:32:10]} {[%emt 00:00:17]} 6. Be3 {[%clk 01:30:38]} {[%emt
00:00:11]} c5 {[%clk 01:32:00]} {[%emt 00:00:40]} 7. d5 {[%clk 01:29:42]}
{[%emt 00:01:26]} e6 {[%clk 01:32:00]} {[%emt 00:00:30]} 8. dxe6 {[%clk
01:22:26]} {[%emt 00:07:46]} Bxe6 {[%clk 01:31:35]} {[%emt 00:00:55]} 9. Qd2
{[%clk 01:20:04]} {[%emt 00:02:52]} Qa5 {[%clk 01:21:53]} {[%emt 00:10:12]} 10.
Rd1 {[%clk 01:14:42]} {[%emt 00:05:52]} Rd8 {[%clk 01:19:51]} {[%emt 00:02:31]}
11. Nb5 {[%clk 01:07:20]} {[%emt 00:07:52]} Nc6 {[%clk 01:12:42]} {[%emt
00:07:39]} 12. Qxa5 {[%clk 01:01:59]} {[%emt 00:05:51]} Nxa5 {[%clk 01:13:06]}
{[%emt 00:00:06]} 13. Nxd6 {[%clk 01:01:26]} {[%emt 00:01:04]} b6 {[%clk
01:12:50]} {[%emt 00:00:47]} 14. b3 {[%clk 01:00:24]} {[%emt 00:01:32]} Ne8
{[%clk 01:05:04]} {[%emt 00:08:15]} 15. Nxe8 {[%clk 00:56:59]} {[%emt
00:03:55]} Bc3+ {[%clk 01:05:05]} {[%emt 00:00:29]} 16. Ke2 {[%clk 00:44:33]}
{[%emt 00:12:56]} Rxe8 {[%clk 01:05:13]} {[%emt 00:00:21]} 17. g3 {[%clk
00:43:31]} {[%emt 00:01:32]} f5 {[%clk 00:51:54]} {[%emt 00:13:49]} 18. Rd3
{[%clk 00:28:01]} {[%emt 00:16:01]} Bg7 {[%clk 00:45:59]} {[%emt 00:06:25]} 19.
Bg2 {[%clk 00:27:04]} {[%emt 00:01:27]} Nc6 {[%clk 00:30:59]} {[%emt 00:15:30]}
20. f4 {[%clk 00:17:24]} {[%emt 00:10:10]} Nb4 {[%clk 00:20:15]} {[%emt
00:11:14]} 21. Rd6 {[%clk 00:14:19]} {[%emt 00:03:34]} fxe4 {[%clk 00:17:16]}
{[%emt 00:03:28]} 22. Bxe4 {[%clk 00:14:24]} {[%emt 00:00:26]} Bxc4+ {[%clk
00:15:42]} {[%emt 00:02:04]} 23. Kf3 {[%clk 00:12:41]} {[%emt 00:02:13]} Rxe4
{[%clk 00:11:13]} {[%emt 00:05:00]} 24. Kxe4 {[%clk 00:12:42]} {[%emt
00:00:28]} Re8+ {[%clk 00:10:59]} {[%emt 00:00:43]} 25. Kf3 {[%clk 00:13:11]}
{[%emt 00:00:02]} Bd5+ {[%clk 00:11:08]} {[%emt 00:00:22]} 26. Rxd5 {[%clk
00:13:25]} {[%emt 00:00:15]} Nxd5 {[%clk 00:11:36]} {[%emt 00:00:02]} 27. Bd2
{[%clk 00:13:08]} {[%emt 00:00:47]} Bc3 {[%clk 00:11:40]} {[%emt 00:00:25]} 28.
Bxc3 {[%clk 00:10:49]} {[%emt 00:02:50]} Nxc3 {[%clk 00:12:09]} {[%emt
00:00:01]} 29. Nh3 {[%clk 00:11:01]} {[%emt 00:00:18]} a5 {[%clk 00:11:14]}
{[%emt 00:01:25]} 30. a4 {[%clk 00:10:34]} {[%emt 00:00:58]} Ne2 {[%clk
00:09:50]} {[%emt 00:01:53]} 31. Nf2 {[%clk 00:05:35]} {[%emt 00:05:29]} Nd4+
{[%clk 00:09:55]} {[%emt 00:00:25]} 32. Kg4 {[%clk 00:05:58]} {[%emt 00:00:06]}
Nxb3 {[%clk 00:07:58]} {[%emt 00:02:28]} 33. Nd3 {[%clk 00:05:58]} {[%emt
00:00:30]} c4 {[%clk 00:07:44]} {[%emt 00:00:44]} 34. Rb1 {[%clk 00:04:51]}
{[%emt 00:01:37]} cxd3 {[%clk 00:01:49]} {[%emt 00:06:25]} 35. Rxb3 {[%clk
00:05:09]} {[%emt 00:00:12]} d2 {[%clk 00:02:05]} {[%emt 00:00:14]} 36. Rd3
{[%clk 00:05:13]} {[%emt 00:00:26]} Re4 {[%clk 00:02:04]} {[%emt 00:00:31]} 37.
Rxd2 {[%clk 00:05:26]} {[%emt 00:00:17]} Rxa4 {[%clk 00:02:28]} {[%emt
00:00:06]} 38. Kg5 {[%clk 00:05:31]} {[%emt 00:00:26]} Re4 {[%clk 00:00:43]}
{[%emt 00:02:15]} 39. Rd6 {[%clk 00:05:15]} {[%emt 00:00:46]} b5 {[%clk
00:00:35]} {[%emt 00:00:38]} 40. Rd5 {[%clk 00:05:33]} {[%emt 00:00:11]} Re8
{[%clk 00:00:34]} {[%emt 00:00:31]} 41. Rxb5 {[%clk 00:04:40]} {[%emt
00:01:23]} Ra8 {[%clk 00:00:55]} {[%emt 00:00:09]} 42. Rb3 {[%clk 00:00:35]}
{[%emt 00:04:35]} a4 {[%clk 00:01:11]} {[%emt 00:00:13]} 43. Ra3 {[%clk
00:00:55]} {[%emt 00:00:11]} Kg7 {[%clk 00:01:24]} {[%emt 00:00:15]} 44. Kg4
{[%clk 00:00:33]} {[%emt 00:00:53]} Kf6 {[%clk 00:01:34]} {[%emt 00:00:20]} 45.
Kf3 {[%clk 00:00:54]} {[%emt 00:00:10]} Ke6 {[%clk 00:30:03]} {[%emt 00:02:01]}
46. Ke4 {[%clk 00:28:31]} {[%emt 00:02:53]} Kd6 {[%clk 00:29:38]} {[%emt
00:00:55]} 47. g4 {[%clk 00:27:29]} {[%emt 00:01:32]} Ke6 {[%clk 00:29:33]}
{[%emt 00:00:35]} 48. h4 {[%clk 00:27:16]} {[%emt 00:00:42]} h5 {[%clk
00:29:26]} {[%emt 00:00:37]} 49. gxh5 {[%clk 00:26:05]} {[%emt 00:01:41]} gxh5
{[%clk 00:29:54]} {[%emt 00:00:02]} 50. Kf3 {[%clk 00:25:45]} {[%emt 00:00:49]}
Kf5 {[%clk 00:30:10]} {[%emt 00:00:15]} 51. Ke3 {[%clk 00:22:30]} {[%emt
00:03:46]} Ra7 {[%clk 00:29:36]} {[%emt 00:01:04]} 52. Kf3 {[%clk 00:22:43]}
{[%emt 00:00:16]} Ra5 {[%clk 00:30:03]} {[%emt 00:00:04]} 53. Ke3 {[%clk
00:22:05]} {[%emt 00:01:08]} Kg4 {[%clk 00:30:08]} {[%emt 00:00:24]} 54. Ke4
{[%clk 00:22:06]} {[%emt 00:00:28]} Kxh4 {[%clk 00:28:58]} {[%emt 00:01:41]} 55.
Kf3 {[%clk 00:22:06]} {[%emt 00:00:30]} Rb5 {[%clk 00:26:01]} {[%emt 00:03:28]}
56. Rxa4 {[%clk 00:20:34]} {[%emt 00:02:02]} Rb3+ {[%clk 00:26:20]} {[%emt
00:00:10]} 57. Kg2 {[%clk 00:19:50]} {[%emt 00:01:13]} Kg4 {[%clk 00:25:53]}
{[%emt 00:00:58]} 58. Rc4 {[%clk 00:18:12]} {[%emt 00:02:09]} Rb2+ {[%clk
00:25:41]} {[%emt 00:00:41]} 59. Kg1 {[%clk 00:18:15]} {[%emt 00:00:26]} Rb3
{[%clk 00:25:14]} {[%emt 00:00:59]} 60. Kg2 {[%clk 00:18:20]} {[%emt 00:00:24]}
Rb5 {[%clk 00:24:55]} {[%emt 00:00:49]} 61. Ra4 {[%clk 00:18:27]} {[%emt
00:00:22]} Rb2+ {[%clk 00:25:13]} {[%emt 00:00:13]} 62. Kg1 {[%clk 00:18:47]}
{[%emt 00:00:10]} Kf3 {[%clk 00:25:01]} {[%emt 00:00:42]} 63. Ra3+ {[%clk
00:19:07]} {[%emt 00:00:11]} Kg4 {[%clk 00:24:58]} {[%emt 00:00:32]} 64. Ra4
{[%clk 00:19:09]} {[%emt 00:00:29]} h4 {[%clk 00:25:24]} {[%emt 00:00:03]} 65.
f5+ {[%clk 00:18:38]} {[%emt 00:01:00]} 1/2-1/2

[Event "NJSK 2024 A"]
[Site "Groningen, Netherlands"]
[Date "2024.04.30"]
[Round "4.7"]
[White "Van de Poel, Jona"]
[Black "Ramak, Vince"]
[Result "0-1"]
[TimeControl "90min/40moves + 30min + 30sec/move"]
[WhiteElo "1865"]
[BlackElo "1902"]

1. e4 {[%clk 01:30:56]} {[%emt 00:00:03]} Nf6 {[%clk 01:30:56]} {[%emt
00:00:05]} 2. e5 {[%clk 01:31:20]} {[%emt 00:00:06]} Nd5 {[%clk 01:31:21]}
{[%emt 00:00:05]} 3. d4 {[%clk 01:31:41]} {[%emt 00:00:09]} d6 {[%clk
01:31:45]} {[%emt 00:00:06]} 4. Nf3 {[%clk 01:32:05]} {[%emt 00:00:06]} g6
{[%clk 01:32:09]} {[%emt 00:00:07]} 5. Bc4 {[%clk 01:32:30]} {[%emt 00:00:04]}
Nb6 {[%clk 01:32:33]} {[%emt 00:00:06]} 6. Bb3 {[%clk 01:32:53]} {[%emt
00:00:06]} Bg7 {[%clk 01:32:56]} {[%emt 00:00:08]} 7. a4 {[%clk 01:33:18]}
{[%emt 00:00:04]} a5 {[%clk 01:33:20]} {[%emt 00:00:06]} 8. Ng5 {[%clk
01:33:41]} {[%emt 00:00:07]} e6 {[%clk 01:33:45]} {[%emt 00:00:06]} 9. f4
{[%clk 01:33:50]} {[%emt 00:00:21]} dxe5 {[%clk 01:34:05]} {[%emt 00:00:11]} 10.
fxe5 {[%clk 01:34:12]} {[%emt 00:00:07]} h6 {[%clk 01:34:27]} {[%emt 00:00:07]}
11. Ne4 {[%clk 01:31:50]} {[%emt 00:02:51]} Qh4+ {[%clk 01:34:51]} {[%emt
00:00:08]} 12. Nf2 {[%clk 01:31:13]} {[%emt 00:01:07]} c5 {[%clk 01:31:53]}
{[%emt 00:03:29]} 13. c3 {[%clk 01:29:16]} {[%emt 00:02:26]} cxd4 {[%clk
01:27:51]} {[%emt 00:04:32]} 14. cxd4 {[%clk 01:25:43]} {[%emt 00:04:03]} Nc6
{[%clk 01:28:12]} {[%emt 00:00:09]} 15. Be3 {[%clk 01:25:49]} {[%emt 00:00:24]}
Nb4 {[%clk 01:20:58]} {[%emt 00:07:43]} 16. g3 {[%clk 01:19:05]} {[%emt
00:07:14]} Qe7 {[%clk 01:19:44]} {[%emt 00:01:45]} 17. Ne4 {[%clk 01:15:13]}
{[%emt 00:04:20]} O-O {[%clk 01:17:44]} {[%emt 00:02:32]} 18. O-O {[%clk
01:01:22]} {[%emt 00:14:20]} N6d5 {[%clk 01:18:05]} {[%emt 00:00:09]} 19. Bf4
{[%clk 00:43:05]} {[%emt 00:18:47]} b6 {[%clk 01:10:16]} {[%emt 00:08:20]} 20.
Nbc3 {[%clk 00:41:46]} {[%emt 00:01:49]} Ba6 {[%clk 01:01:50]} {[%emt
00:08:56]} 21. Rf2 {[%clk 00:36:07]} {[%emt 00:06:09]} Nxf4 {[%clk 00:58:12]}
{[%emt 00:04:08]} 22. Rxf4 {[%clk 00:32:49]} {[%emt 00:03:47]} Nd3 {[%clk
00:56:38]} {[%emt 00:02:05]} 23. Nf6+ {[%clk 00:29:36]} {[%emt 00:03:43]} Bxf6
{[%clk 00:55:48]} {[%emt 00:01:19]} 24. Rxf6 {[%clk 00:25:35]} {[%emt
00:04:31]} Rad8 {[%clk 00:52:47]} {[%emt 00:03:31]} 25. Qg4 {[%clk 00:23:05]}
{[%emt 00:02:59]} Kh8 {[%clk 00:34:45]} {[%emt 00:18:35]} 26. Bxe6 {[%clk
00:10:19]} {[%emt 00:13:15]} fxe6 {[%clk 00:34:04]} {[%emt 00:01:11]} 27. Rxe6
{[%clk 00:10:33]} {[%emt 00:00:15]} Qd7 {[%clk 00:28:36]} {[%emt 00:05:59]} 28.
d5 {[%clk 00:10:50]} {[%emt 00:00:13]} Nxe5 {[%clk 00:26:28]} {[%emt 00:02:38]}
29. Qd4 {[%clk 00:11:07]} {[%emt 00:00:13]} Qxe6 {[%clk 00:26:43]} {[%emt
00:00:15]} 30. Re1 {[%clk 00:09:20]} {[%emt 00:02:17]} Qf6 {[%clk 00:26:04]}
{[%emt 00:01:09]} 0-1

[Event "NJSK 2024 A"]
[Site "Groningen, Netherlands"]
[Date "2024.05.01"]
[Round "5.1"]
[White "Smid, Jelle"]
[Black "Slagboom, Leandro"]
[Result "1/2-1/2"]
[TimeControl "90min/40moves + 30min + 30sec/move"]
[WhiteElo "1917"]
[BlackElo "2326"]

1. e4 {[%clk 01:30:55]} {[%emt 00:00:05]} e5 {[%clk 01:30:53]} {[%emt
00:00:06]} 2. Nf3 {[%clk 01:31:16]} {[%emt 00:00:10]} Nc6 {[%clk 01:31:17]}
{[%emt 00:00:06]} 3. Nc3 {[%clk 01:31:27]} {[%emt 00:00:19]} Nf6 {[%clk
01:31:24]} {[%emt 00:00:24]} 4. d4 {[%clk 01:31:53]} {[%emt 00:00:05]} exd4
{[%clk 01:31:49]} {[%emt 00:00:05]} 5. Nxd4 {[%clk 01:32:18]} {[%emt 00:00:04]}
Bb4 {[%clk 01:32:08]} {[%emt 00:00:11]} 6. Nxc6 {[%clk 01:32:43]} {[%emt
00:00:05]} bxc6 {[%clk 01:32:32]} {[%emt 00:00:06]} 7. Bd3 {[%clk 01:33:08]}
{[%emt 00:00:05]} O-O {[%clk 01:32:56]} {[%emt 00:00:06]} 8. O-O {[%clk
01:33:32]} {[%emt 00:00:06]} Re8 {[%clk 01:33:22]} {[%emt 00:00:04]} 9. Qf3
{[%clk 01:30:32]} {[%emt 00:03:29]} h6 {[%clk 01:33:21]} {[%emt 00:00:31]} 10.
h3 {[%clk 01:30:17]} {[%emt 00:00:45]} d6 {[%clk 01:32:40]} {[%emt 00:01:11]}
11. Bf4 {[%clk 01:28:55]} {[%emt 00:01:52]} Rb8 {[%clk 01:31:03]} {[%emt
00:02:07]} 12. Rad1 {[%clk 01:26:52]} {[%emt 00:02:32]} Nd7 {[%clk 01:29:28]}
{[%emt 00:02:05]} 13. Qg3 {[%clk 01:17:23]} {[%emt 00:09:59]} Bxc3 {[%clk
01:22:49]} {[%emt 00:07:10]} 14. bxc3 {[%clk 01:17:45]} {[%emt 00:00:07]} Qf6
{[%clk 01:22:51]} {[%emt 00:00:28]} 15. Be3 {[%clk 01:12:27]} {[%emt 00:05:48]}
c5 {[%clk 01:21:24]} {[%emt 00:01:57]} 16. f4 {[%clk 01:10:33]} {[%emt
00:02:24]} Qxc3 {[%clk 01:19:02]} {[%emt 00:02:52]} 17. e5 {[%clk 01:07:52]}
{[%emt 00:03:11]} dxe5 {[%clk 00:56:03]} {[%emt 00:23:29]} 18. fxe5 {[%clk
01:08:07]} {[%emt 00:00:16]} Qxe5 {[%clk 00:54:56]} {[%emt 00:01:36]} 19. Bf4
{[%clk 01:05:28]} {[%emt 00:03:09]} Qh5 {[%clk 00:52:14]} {[%emt 00:03:12]} 20.
Bxc7 {[%clk 00:55:33]} {[%emt 00:10:25]} Ra8 {[%clk 00:34:35]} {[%emt
00:18:09]} 21. Bb5 {[%clk 00:50:47]} {[%emt 00:05:16]} Nf6 {[%clk 00:33:02]}
{[%emt 00:02:04]} 22. Bxe8 {[%clk 00:50:21]} {[%emt 00:00:56]} Nxe8 {[%clk
00:33:29]} {[%emt 00:00:03]} 23. Rd8 {[%clk 00:48:52]} {[%emt 00:01:58]} Bb7
{[%clk 00:33:52]} {[%emt 00:00:07]} 24. Rxa8 {[%clk 00:48:38]} {[%emt
00:00:45]} Bxa8 {[%clk 00:34:20]} {[%emt 00:00:01]} 25. Qe5 {[%clk 00:47:49]}
{[%emt 00:01:19]} Qxe5 {[%clk 00:32:05]} {[%emt 00:02:45]} 26. Bxe5 {[%clk
00:48:11]} {[%emt 00:00:08]} Kf8 {[%emt 00:04:46]} 27. Rb1 {[%clk 00:45:32]}
Be4 {[%clk 00:30:05]} {[%emt 00:01:23]} 28. Rb8 {[%clk 00:45:01]} {[%emt
00:01:01]} Ke7 {[%clk 00:30:17]} {[%emt 00:00:18]} 29. c3 {[%clk 00:44:44]}
{[%emt 00:00:47]} Kd7 {[%clk 00:29:26]} {[%emt 00:01:21]} 30. Kf2 {[%clk
00:44:20]} {[%emt 00:00:54]} f5 {[%clk 00:28:49]} {[%emt 00:01:07]} 31. g3
{[%clk 00:40:32]} {[%emt 00:04:19]} Bc6 {[%clk 00:27:22]} {[%emt 00:01:56]} 32.
h4 {[%clk 00:31:09]} {[%emt 00:09:53]} g5 {[%clk 00:26:49]} {[%emt 00:01:03]}
33. c4 {[%clk 00:24:10]} {[%emt 00:07:30]} Ke6 {[%clk 00:25:52]} {[%emt
00:01:27]} 34. Bb2 {[%clk 00:24:00]} {[%emt 00:00:39]} Ke7 {[%clk 00:18:51]}
{[%emt 00:07:31]} 35. hxg5 {[%clk 00:21:49]} {[%emt 00:02:42]} hxg5 {[%clk
00:19:20]} {[%emt 00:00:01]} 36. Bc1 {[%clk 00:22:10]} {[%emt 00:00:09]} g4
{[%clk 00:18:40]} {[%emt 00:01:09]} 37. Be3 {[%clk 00:19:08]} {[%emt 00:03:32]}
Kd6 {[%clk 00:19:01]} {[%emt 00:00:09]} 38. Rd8+ {[%clk 00:19:08]} {[%emt
00:00:30]} Kc7 {[%clk 00:18:46]} {[%emt 00:00:45]} 39. Rxe8 {[%clk 00:11:23]}
{[%emt 00:08:15]} Bxe8 {[%clk 00:19:11]} {[%emt 00:00:06]} 1/2-1/2

[Event "NJSK 2024 A"]
[Site "Groningen, Netherlands"]
[Date "2024.05.01"]
[Round "5.2"]
[White "Bakija, Alan"]
[Black "Snijders, Take"]
[Result "1/2-1/2"]
[TimeControl "90min/40moves + 30min + 30sec/move"]
[WhiteElo "2101"]
[BlackElo "2090"]

1. Nf3 {[%clk 01:30:57]} {[%emt 00:00:02]} d5 {[%clk 01:30:54]} {[%emt
00:00:06]} 2. g3 {[%clk 01:31:24]} {[%emt 00:00:04]} Bg4 {[%clk 01:31:16]}
{[%emt 00:00:08]} 3. Bg2 {[%clk 01:31:46]} {[%emt 00:00:08]} c6 {[%clk
01:31:33]} {[%emt 00:00:13]} 4. h3 {[%clk 01:31:44]} {[%emt 00:00:31]} Bh5
{[%clk 01:30:50]} {[%emt 00:01:14]} 5. O-O {[%clk 01:32:00]} {[%emt 00:00:13]}
Nd7 {[%clk 01:30:49]} {[%emt 00:00:32]} 6. d4 {[%clk 01:31:47]} {[%emt
00:00:43]} e6 {[%clk 01:30:40]} {[%emt 00:00:38]} 7. c4 {[%clk 01:32:14]}
{[%emt 00:00:04]} Ngf6 {[%clk 01:30:11]} {[%emt 00:00:58]} 8. cxd5 {[%clk
01:32:17]} {[%emt 00:00:28]} exd5 {[%clk 01:29:09]} {[%emt 00:01:32]} 9. Qb3
{[%clk 01:32:42]} {[%emt 00:00:05]} Qb6 {[%clk 01:26:13]} {[%emt 00:03:27]} 10.
Qe3+ {[%clk 01:33:06]} {[%emt 00:00:05]} Be7 {[%clk 01:22:49]} {[%emt
00:03:54]} 11. Nh4 {[%clk 01:33:11]} {[%emt 00:00:25]} Bg6 {[%clk 01:07:39]}
{[%emt 00:15:40]} 12. Nxg6 {[%clk 01:33:32]} {[%emt 00:00:08]} hxg6 {[%clk
01:07:08]} {[%emt 00:01:02]} 13. Nc3 {[%clk 01:33:54]} {[%emt 00:00:06]} Nf8
{[%clk 01:01:09]} {[%emt 00:06:31]} 14. Qd3 {[%clk 01:34:11]} {[%emt 00:00:11]}
Ne6 {[%clk 00:59:40]} {[%emt 00:02:00]} 15. e3 {[%clk 01:34:34]} {[%emt
00:00:07]} g5 {[%clk 00:52:46]} {[%emt 00:07:24]} 16. Rd1 {[%clk 01:22:16]}
{[%emt 00:12:48]} Rd8 {[%clk 00:48:17]} {[%emt 00:04:59]} 17. Rb1 {[%clk
01:21:53]} {[%emt 00:00:54]} g4 {[%clk 00:43:00]} {[%emt 00:05:47]} 18. hxg4
{[%clk 01:11:44]} {[%emt 00:10:39]} Nxg4 {[%clk 00:42:02]} {[%emt 00:01:28]} 19.
Bf3 {[%clk 01:09:59]} {[%emt 00:02:15]} Nf6 {[%clk 00:36:50]} {[%emt 00:05:42]}
20. Bd2 {[%clk 01:09:02]} {[%emt 00:01:27]} Ng5 {[%clk 00:32:54]} {[%emt
00:04:26]} 21. Kg2 {[%clk 01:01:46]} {[%emt 00:07:46]} Nxf3 {[%clk 00:23:32]}
{[%emt 00:09:52]} 22. Kxf3 {[%clk 01:02:10]} {[%emt 00:00:05]} Qc7 {[%clk
00:23:13]} {[%emt 00:00:50]} 23. Rh1 {[%clk 01:01:30]} {[%emt 00:01:10]} O-O
{[%clk 00:21:25]} {[%emt 00:02:18]} 24. Kg2 {[%clk 00:57:51]} {[%emt 00:04:08]}
Qd7 {[%clk 00:18:25]} {[%emt 00:03:32]} 25. Ne2 {[%clk 00:57:26]} {[%emt
00:00:53]} g6 {[%clk 00:17:36]} {[%emt 00:01:19]} 26. Nc1 {[%clk 00:54:59]}
{[%emt 00:02:57]} Kg7 {[%clk 00:15:44]} {[%emt 00:02:23]} 27. Qe2 {[%clk
00:54:12]} {[%emt 00:01:16]} Rh8 {[%clk 00:14:03]} {[%emt 00:02:11]} 28. Nd3
{[%clk 00:54:31]} {[%emt 00:00:11]} Bd6 {[%clk 00:13:52]} {[%emt 00:00:42]} 29.
f3 {[%clk 00:29:00]} {[%emt 00:26:00]} Qe6 {[%clk 00:11:33]} {[%emt 00:02:49]}
30. Nf2 {[%clk 00:16:58]} {[%emt 00:12:33]} Nh5 {[%clk 00:09:38]} {[%emt
00:02:25]} 31. f4 {[%clk 00:11:02]} {[%emt 00:06:25]} Bxf4 {[%clk 00:07:51]}
{[%emt 00:02:18]} 32. Rxh5 {[%clk 00:09:47]} {[%emt 00:01:45]} Rxh5 {[%clk
00:08:18]} {[%emt 00:00:02]} 33. gxf4 {[%clk 00:10:10]} {[%emt 00:00:07]} Rdh8
{[%clk 00:08:17]} {[%emt 00:00:32]} 34. Rg1 {[%clk 00:02:56]} {[%emt 00:07:43]}
Qf5 {[%clk 00:07:43]} {[%emt 00:01:06]} 35. Bc3 {[%clk 00:00:53]} {[%emt
00:02:33]} Rh2+ {[%clk 00:07:22]} {[%emt 00:00:50]} 36. Kf1 {[%clk 00:01:21]}
{[%emt 00:00:01]} Qb1+ {[%clk 00:06:59]} {[%emt 00:00:54]} 37. Qe1 {[%clk
00:01:39]} {[%emt 00:00:12]} Qxa2 {[%clk 00:07:09]} {[%emt 00:00:20]} 38. Rg2
{[%clk 00:01:37]} {[%emt 00:00:32]} Qc4+ {[%clk 00:07:22]} {[%emt 00:00:18]} 39.
Kg1 {[%clk 00:01:59]} {[%emt 00:00:07]} Rxg2+ {[%clk 00:02:06]} {[%emt
00:05:45]} 40. Kxg2 {[%clk 00:02:27]} {[%emt 00:00:01]} Re8 {[%clk 00:00:55]}
{[%emt 00:01:41]} 41. Ng4 {[%clk 00:22:54]} {[%emt 00:10:03]} Qd3 {[%clk
00:14:45]} {[%emt 00:16:39]} 42. Qh4 {[%clk 00:04:31]} {[%emt 00:18:53]} Qe4+
{[%clk 00:13:26]} {[%emt 00:01:49]} 43. Kg3 {[%clk 00:04:31]} {[%emt 00:00:29]}
Rh8 {[%clk 00:12:50]} {[%emt 00:01:07]} 44. Qf6+ {[%clk 00:04:51]} {[%emt
00:00:10]} Kg8 {[%clk 00:13:10]} {[%emt 00:00:09]} 45. Qd8+ {[%clk 00:00:35]}
{[%emt 00:04:46]} Kg7 {[%clk 00:13:29]} {[%emt 00:00:11]} 46. Qf6+ {[%clk
00:00:37]} {[%emt 00:00:29]} Kg8 {[%clk 00:13:54]} {[%emt 00:00:05]} 47. Qd8+
{[%clk 00:00:40]} {[%emt 00:00:27]} 1/2-1/2